Workbook

Sheet SelecTool (hidden)
B2: Active Chilled Beam SelecTool v7.1 | Q2: Radio Button Selection | R2: 1
N6: Help Radio button selections to toggle between Cooling Only or Cooling and Heating coil types. The yellow cells take input data. Selections can be added to the Project Schedule sheet using the command button . Additional product information can be found on the website, use the link below. For more information please contact your local Climate Technologies branch. | Q6: Ensemble Description | R6: Icl (clo)
C7: Location | Q7: Walking shorts, short-sleeved shirt | R7: 0.36
C8: Name | Q8: Trousers, short-sleeved shirt | R8: 0.57
C9: No. units in zone | Q9: Trousers, long-sleeved shirt | R9: 0.61
Q10: Trousers, long-sleeved shirt plus suit jacket | R10: 0.96
B11: Model Selection | Q11: Trousers, long-sleeved shirt, long-sleeved sweater, T-shirt | R11: 1.01
Q12: Sweat pants, sweat shirt | R12: 0.74
D13: Model | E13: Nom. Length | F13: Nozzle Options | Q13: Long-sleeved pajama top, long pajama trousers, short 3/4 sleeved robe, slippers | R13: 0.96
D14: ACB45 | E14: Select Length | F14: Select Nozzles | Q14: Knee-length skirt, short-sleeved shirt, panty hose, sandals | R14: 0.54
Q15: Knee-length skirt, long-sleeved shirt, full slip, panty hose | R15: 0.67
C16: Model Code | D16: =IFERROR('Selection Data'!J87&"-"&'Selection Data'!L87&" "&SelecTool!F14,"") ->  | Q16: Knee-length skirt, long-sleeved shirt, half slip, panty hose, long-sleeved sweater | R16: 1.1
Q17: Long-sleeved coveralls, T-shirt | R17: 0.72
B18: Design Data | Q18: Overalls, long-sleeved shirt, T-shirt | R18: 0.89
D19: Cooling | F19: Heating | H19: Comfort Cooling Info. | Q19: Insulated coveralls, long-sleeved thermal underwear, long underwear bottoms | R19: 1.37
C20: Room temperature | D20: 25 | F20: 21 | I20: Air flow per metre of unit | J20: =IFERROR(D27/E14,"") ->  | Q20: ASHRAE Fundamentals 2001
C21: Relative Humidity | D21: 0.5 | I21: Mean water to air ΔT | J21: =D20-AVERAGE(D31,D32) -> 8.335 | Q21: Table 7 - Typical Insulation for Clothing Ensembles
C22: Dew point | D22: =dewPointT(airvp(D21,airSVP(D20))) -> 13.86525917
I23: Supply air temperature | J23: =IFERROR((((273+'Selection Data'!C106)*('Selection Data'!E87*'Selection Data'!C63))+('Selection Data'!C93*(273+SelecTool!D24)))/SelecTool!J24-273,"") -> 
C24: Primary air temperature | D24: 19 | F24: 21 | I24: Supply volume | J24: =IFERROR('Selection Data'!C93+('Selection Data'!E87*'Selection Data'!C63),"") ->  | Q24: Office Activity | R24: MET
C25: Relative Humidity | D25: 0.5 | F25: 0.3 | I25: Sound Power (Lw) | J25: =IFERROR(IF('Selection Data'!C64=375,(9+50*LOG('Selection Data'!C93*10^-3/('Selection Data'!C63*(7.5*10^-3)^2*PI()/4))+10*LOG('Selection Data'!C63*(7.5*10^-3)^2*PI()/4)),(9+50*LOG('Selection Data'!C93*10^-3/('Selection Data'!C63*(9*10^-3)^2*PI()/4))+10*LOG('Selection Data'!C63*(9*10^-3)^2*PI()/4))),"") ->  | Q25: Seated, reading or writing | R25: 1
Q26: Typing | R26: 1.1
C27: Primary air flow rate † | D27: 16.52472894 | F27: =D27 -> 16.52472894 | I27: Comfort | J27: Assumptions | Q27: Filing, seated | R27: 1.2
C28: Plenum Pressure | D28: =IFERROR('Selection Data'!C94,"") ->  | F28: =D28 ->  | I28: Air Velocity | J28: 0.25 | Q28: Filing, standing | R28: 1.4
I29: CLO | J29: 1 | Q29: Walking about | R29: 1.7
I30: Occupant (MET) | J30: =IFERROR(VLOOKUP(#REF!,Q25:R30,2,FALSE),1.2) -> 1.2 | Q30: Lifting/packing | R30: 2.1
C31: Supply water temperature | D31: 15.7 | F31: 35 | I31: Room Conditions | J31: =D20&"°C, "&(D21*100)&"%" -> 25°C, 50% | Q31: ASHRAE Standard 55 - Appendix A
C32: Return water temperature | D32: 17.63 | F32: =IFERROR('Selection Data'!F116,"") ->  | I32: PMV | J32: =PMV(D20,D20,J28,(100*D21),J29,J30,0) -> 0.5895005895
C33: Water pressure drop | D33: =IFERROR('Selection Data'!C104,"") ->  | F33: =IFERROR('Selection Data'!F117,"") ->  | I33: PPD † | J33: =1-0.95*EXP(-0.03353*J32^ 4 - 0.2197 *J32^ 2) -> 0.1233878767 | N33: For more product information please click here
C34: Water flow | D34: =IFERROR(IF('Selection Data'!C102<0.03,"<"&0.03,'Selection Data'!C102),"") ->  | F34: 0
H35: † - for cooling data room air conditions.
C36: Primary Air Sensible Duty | D36: =IFERROR((airdensity(D20)*D27/1000)*(((1006*(D24-D20)))+(1.84*(D24-D20)*airVPtoHumidityRatio(airvp(D25,airSVP(D24))))),0) -> -119.6155471 | F36: =IFERROR((airdensity(F20)*F27/1000)*(((1006*(F24-F20)))+(1.84*(F24-F20)*airVPtoHumidityRatio(airvp(F25,airSVP(F24))))),0) -> 0
C37: Waterside Sensible Duty | D37: =IFERROR('Selection Data'!F110,"") ->  | F37: =IFERROR('Selection Data'!F114,"") -> 
C38: Total Sensible Duty | D38: =IFERROR(D37+D36,"") ->  | F38: =IFERROR(F37+F36,"") -> 
C39: Primary Air Latent Duty | D39: =IFERROR((airVPtoHumidityRatio(airvp(D25,airSVP(D24)))-airVPtoHumidityRatio(airvp(D21,airSVP(D20))))*airdensity(D24)*(('Selection Data'!C63*1.2*(SelecTool!D28/'Selection Data'!C64)^0.5/airdensity(D24))/1000)*2501,"") -> 
F43: For more product information please click here | N43: Expires in 4064 days.

Sheet Project Schedule (hidden)
A1: =IF(SelecTool!D7="","",SelecTool!D7) ->  | B1: =IF(SelecTool!D8="","",SelecTool!D8) ->  | D1: =SelecTool!D9 -> 0 | F1: =SelecTool!D16 ->  | G1: ='Selection Data'!S87 ->  | I1: =SelecTool!D20 -> 25 | J1: =SelecTool!D21 -> 0.5 | L1: =SelecTool!D24 -> 19 | M1: =SelecTool!D25 -> 0.5 | N1: =SelecTool!D28 ->  | O1: =SelecTool!D27 -> 16.52472894 | P1: =SelecTool!D36 -> -119.6155471 | Q1: =SelecTool!D39 ->  | S1: =SelecTool!D31 -> 15.7 | T1: =SelecTool!D32 -> 17.63 | U1: =SelecTool!D34 ->  | V1: =SelecTool!D33 ->  | W1: =SelecTool!D37 ->  | Y1: =SelecTool!D38 ->  | Z1: =SelecTool!J24 ->  | AA1: =SelecTool!J23 ->  | AC1: =SelecTool!F20 -> 21 | AE1: =SelecTool!F24 -> 21 | AF1: =SelecTool!F28 ->  | AG1: =SelecTool!F27 -> 16.52472894 | AH1: =SelecTool!F36 -> 0 | AJ1: =SelecTool!F31 -> 35 | AK1: =SelecTool!F32 ->  | AL1: =SelecTool!F34 -> 0 | AM1: =SelecTool!F33 ->  | AN1: =SelecTool!F37 ->  | AP1: =IFERROR(AH1+AN1,"") ->  | AR1: =IFERROR(D1*O1,"") -> 0 | AS1: =IFERROR(D1*Y1/1000,"") ->  | AT1: =IFERROR(D1*Q1/1000,"") ->  | AU1: =IFERROR(D1*U1,"") ->  | AW1: =IFERROR(D1*AG1,"") -> 0 | AX1: =IFERROR(D1*AP1/1000,"") ->  | AY1: =IFERROR(D1*AL1,"") -> 0 | AZ1: =SelecTool!J25 -> 
A4: Project Name
A5: Project Number
A6: Date
A7: Issue
I8: COOLING | AC8: HEATING | AR8: ZONE SUMMARY
I9: Room | L9: Air side | S9: Water side (Coil) | Y9: Total performance | AC9: Room | AE9: Air side | AJ9: Water side (Coil) | AP9: Total sensible heating | AR9: Cooling | AW9: Heating | AZ9: Sound Power (Lw)
A10: Location | B10: Name | D10: Qty | F10: Unit Code | G10: Size LxWxH | I10: Temperature | J10: Relative humidity | L10: Temperature | M10: Relative humidity | N10: Static pressure drop | O10: Primary air flow | P10: Primary air sensible cooling | Q10: Primary air latent cooling | S10: Entering water temperature | T10: Leaving water temperature | U10: Water flow rate | V10: Water pressure drop | W10: Coil (secondary) cooling capacity | Y10: Total sensible cooling | Z10: Supply air flow rate | AA10: Supply air temperature | AC10: Temperature | AE10: Temperature | AF10: Static pressure drop | AG10: Primary air flow | AH10: Primary air sensible heating | AJ10: Entering water temperature | AK10: Leaving water temperature | AL10: Water flow rate | AM10: Water pressure drop | AN10: Coil (secondary) heating capacity | AR10: Zone primary air flow | AS10: Zone total sensible cooling | AT10: Zone chilled water flow | AU10: Zone chilled water flow | AW10: Zone primary air flow | AX10: Zone total sensible heating | AY10: Zone hot water flow
D11: # | G11: mm | I11: ⁰C | J11: %rh | L11: ⁰C | M11: %rh | N11: Pa | O11: L/s | P11: W | Q11: W | S11: ⁰C | T11: ⁰C | U11: L/s | V11: kPa | W11: W | Y11: W | Z11: L/s | AA11: ⁰C | AC11: ⁰C | AE11: ⁰C | AF11: Pa | AG11: L/s | AH11: W | AJ11: ⁰C | AK11: ⁰C | AL11: L/s | AM11: kPa | AN11: W | AP11: W | AR11: L/s | AS11: kW | AT11: kW | AU11: L/s | AW11: L/s | AX11: kW | AY11: L/s | AZ11: dB(A)

Sheet Selection Data (hidden)
A1: Flow Per Nozzle | H1: Lookup from Inputs | M1: Std. Nozzle Range | O1: Coil Water Resistance
O2: kPa = ax^b where x = L/s, and L/s = (y/a)^(1/b) where y = kPa
H3: 1 | I3: 2 | J3: 3 | K3: 4 | L3: 5 | M3: 6 | N3: 7 | O3: 8 | P3: 9 | Q3: 10 | R3: 11 | S3: 12 | U3: 1 | V3: 2 | W3: 3 | X3: 4 | Y3: 5 | Z3: 6 | AA3: 7 | AB3: 8 | AC3: 9 | AD3: 10 | AE3: 11 | AF3: 12 | AG3: 13 | AH3: 14 | AI3: 15 | AJ3: 16 | AK3: 17 | AL3: 18 | AM3: 19 | AN3: 20 | AO3: 21 | AP3: 22 | AQ3: 23 | AR3: 24 | AS3: 25 | AT3: 26 | AU3: 27 | AV3: 28 | AW3: 29 | AY3: 1 | AZ3: 2 | BA3: 3 | BB3: 4 | BC3: 5 | BD3: 6 | BE3: 7 | BF3: 8 | BG3: 9 | BH3: 10 | BI3: 11 | BJ3: 12 | BK3: 13 | BL3: 14 | BM3: 15 | BN3: 16 | BO3: 17
O4: Coolinig Coil Water Resistance Function | Q4: Heating Coil Water Resistance Function | U4: COOLING DUTY REFERENCE | V4: Coil Length | W4: Total No. Nozzles | X4: Mean Water Flow | Y4: Coefficient @ 0.1L/s | Z4: Exponent @ 0.1L/s | AA4: Exponent @ 0.1L/s | AB4: Mean Water Flow | AC4: Coefficient @ 0.05L/s | AD4: Exponent @ 0.05L/s | AE4: Exponent @ 0.05L/s | AF4: Total No. Nozzles | AG4: Mean Water Flow | AH4: Coefficient @ 0.1L/s | AI4: Exponent @ 0.1L/s | AJ4: Exponent @ 0.1L/s | AK4: Mean Water Flow | AL4: Coefficient @ 0.05L/s | AM4: Exponent @ 0.05L/s | AN4: Exponent @ 0.05L/s | AO4: Total No. Nozzles | AP4: Mean Water Flow | AQ4: Coefficient @ 0.1L/s | AR4: Exponent @ 0.1L/s | AS4: Exponent @ 0.1L/s | AT4: Mean Water Flow | AU4: Coefficient @ 0.05L/s | AV4: Exponent @ 0.05L/s | AW4: Exponent @ 0.05L/s | AY4: HEATING DUTY REFERENCE | AZ4: Coil Length | BA4: Total No. Nozzles | BB4: Mean Water Flow | BC4: Coefficient @ 0.1L/s | BD4: Exponent @ 0.1L/s | BE4: Exponent @ 0.1L/s | BF4: Total No. Nozzles | BG4: Mean Water Flow | BH4: Coefficient @ 0.1L/s | BI4: Exponent @ 0.1L/s | BJ4: Exponent @ 0.1L/s | BK4: Total No. Nozzles | BL4: Mean Water Flow | BM4: Coefficient @ 0.1L/s | BN4: Exponent @ 0.1L/s | BO4: Exponent @ 0.1L/s
H5: Lookup Ref: | I5: Config. Ref. | J5: Model | K5: Nom Length | L5: Coil | N5: Nozzle Options | O5: Factor (a) | P5: Power (b) | Q5: Factor (a) | R5: Power (b) | S5: Nominal Size LxWxH | U5: Duty Calc. Ref: | V5: mts | X5: kg/s | Y5: A | Z5: n | AA5: m | AB5: kg/s | AC5: A | AD5: n | AE5: m | AG5: kg/s | AH5: A | AI5: n | AJ5: m | AK5: kg/s | AL5: A | AM5: n | AN5: m | AP5: kg/s | AQ5: A | AR5: n | AS5: m | AT5: kg/s | AU5: A | AV5: n | AW5: m | AY5: Duty Calc. Ref: | AZ5: mts | BB5: kg/s | BC5: A | BD5: n | BE5: m | BG5: kg/s | BH5: A | BI5: n | BJ5: m | BL5: kg/s | BM5: A | BN5: n | BO5: m
H6: =J6&K6&IF(Q6="",1,2) -> ACB450.91 | I6: A | J6: ACB45 | K6: 0.9 | L6: 750 / 282 | M6: 36 40 | N6: SN | O6: 1138.5 | P6: 1.86 | S6: 895x493x283
H7: =J7&K7&IF(Q7="",1,2) -> ACB451.51 | I7: A | J7: ACB45 | K7: 1.5 | L7: 1350 / 282 | M7: 60 68 | N7: SN | O7: 1317.3 | P7: 1.75 | S7: 1495x493x283 | U7: =I7&N7 -> ASN | V7: =LEFT(L7,4)/1000 -> 1.35 | W7: 30 | X7: 0.08932435532 | Y7: 1.304637175 | Z7: 1.339854218 | AA7: 0.9924827974 | AB7: 0.03914417446 | AC7: 1.016053453 | AD7: 1.32551243 | AE7: 1.098214749 | AF7: 50 | AG7: 0.08925503954 | AH7: 1.728819222 | AI7: 1.218489611 | AJ7: 0.9494239394 | AK7: 0.03894923337 | AL7: 2.39399083 | AM7: 1.100684641 | AN7: 0.9380727845 | AO7: 70 | AP7: 0.09011656821 | AQ7: 1.918875791 | AR7: 1.129416295 | AS7: 0.9770991154 | AT7: 0.03943786377 | AU7: 2.98779915 | AV7: 0.9604242369 | AW7: 1.010522375
H8: ACB450.92 | I8: B | J8: ACB45 | K8: 0.9 | L8: 750 / 482 | M8: 36 40 | N8: SN | O8: 599.2 | P8: 1.67 | Q8: 270.7 | R8: 1.73 | S8: 895x493x283
H9: ACB451.52 | I9: B | J9: ACB45 | K9: 1.5 | L9: 1350 / 482 | M9: 60 68 | N9: SN | O9: 1126.7 | P9: 1.82 | Q9: 419.3 | R9: 1.84 | S9: 1495x493x283 | U9: =I9&N9 -> BSN | V9: =LEFT(L9,4)/1000 -> 1.35 | W9: 30 | X9: 0.08932435532 | Y9: 1.304637175 | Z9: 1.339854218 | AA9: 0.9924827974 | AB9: 0.03914417446 | AC9: 1.016053453 | AD9: 1.32551243 | AE9: 1.098214749 | AF9: 50 | AG9: 0.08925503954 | AH9: 1.728819222 | AI9: 1.218489611 | AJ9: 0.9494239394 | AK9: 0.03894923337 | AL9: 2.39399083 | AM9: 1.100684641 | AN9: 0.9380727845 | AO9: 70 | AP9: 0.09011656821 | AQ9: 1.918875791 | AR9: 1.129416295 | AS9: 0.9770991154 | AT9: 0.03943786377 | AU9: 2.98779915 | AV9: 0.9604242369 | AW9: 1.010522375
H10: ACB460.61 | I10: C | J10: ACB46 | K10: 0.6 | L10: 450 / 282 | M10: 32 | N10: SN | O10: 980.11 | P10: 1.97 | S10: 595x593x282
H11: ACB460.91 | I11: C | J11: ACB46 | K11: 0.9 | L11: 750 / 282 | M11: 36 40 | N11: SN | O11: 1138.5 | P11: 1.86 | S11: 895x593x282
H12: ACB461.21 | I12: C | J12: ACB46 | K12: 1.2 | L12: 1050 / 282 | M12: 48 56 | N12: SN | O12: 1215.65 | P12: 1.79 | S12: 1195x593x282 | U12: =I12&N12 -> CSN | V12: =LEFT(L12,4)/1000 -> 1.05 | W12: 40 | X12: 0.118076975 | Y12: 2.324503574 | Z12: 1.190107639 | AA12: 0.9302145064 | AB12: 0.05724817055 | AC12: 2.466503052 | AD12: 1.128130483 | AE12: 0.9761552298 | AF12: 50 | AG12: 0.116116719 | AH12: 2.85230121 | AI12: 1.071899245 | AJ12: 0.939227677 | AK12: 0.05487892563 | AL12: 2.747111105 | AM12: 1.064642492 | AN12: 0.9476890908 | AO12: 60 | AP12: 0.1158775054 | AQ12: 2.979337274 | AR12: 1.053992853 | AS12: 0.9096708632 | AT12: 0.05867592084 | AU12: 0.7300456724 | AV12: 1.388593319 | AW12: 1.025862786 | AY12: =I12&N12 -> CSN | AZ12: =V12 -> 1.05 | BA12: 40 | BB12: 0.05340366264 | BC12: 3.853556321 | BD12: 0.8064242197 | BE12: 1.007222748 | BF12: 50 | BG12: 0.05107293458 | BH12: 4.969294198 | BI12: 0.7152287856 | BJ12: 0.9906537465 | BK12: 60 | BL12: 0.05246105302 | BM12: 4.07658143 | BN12: 0.6642226522 | BO12: 1.093362814
H13: ACB461.51 | I13: C | J13: ACB46 | K13: 1.5 | L13: 1350 / 282 | M13: 60 68 | N13: SN | O13: 1317.3 | P13: 1.75 | S13: 1495x593x282
H14: ACB461.81 | I14: C | J14: ACB46 | K14: 1.8 | L14: 1650 / 282 | M14: 72 80 | N14: SN | O14: 1454.3 | P14: 1.76 | S14: 1795x593x282
H15: ACB462.41 | I15: C | J15: ACB46 | K15: 2.4 | L15: 2250 / 282 | M15: 92 108 | N15: SN | O15: 273.1 | P15: 1.79 | S15: 2395x593x282
H16: ACB460.62 | I16: D | J16: ACB46 | K16: 0.6 | L16: 450 / 482 | M16: 32 | N16: SN | O16: 393.6 | P16: 1.57 | Q16: 208.6 | R16: 1.66 | S16: 595x593x282
H17: ACB460.92 | I17: D | J17: ACB46 | K17: 0.9 | L17: 750 / 482 | M17: 36 40 | N17: SN | O17: 599.2 | P17: 1.67 | Q17: 270.7 | R17: 1.73 | S17: 895x593x282
H18: ACB461.22 | I18: D | J18: ACB46 | K18: 1.2 | L18: 1050 / 482 | M18: 48 56 | N18: SN | O18: 844.5 | P18: 1.75 | Q18: 341 | R18: 1.79 | S18: 1195x593x282 | U18: =I18&N18 -> DSN | V18: =LEFT(L18,4)/1000 -> 1.05 | W18: 40 | X18: 0.118076975 | Y18: 2.324503574 | Z18: 1.190107639 | AA18: 0.9302145064 | AB18: 0.05724817055 | AC18: 2.466503052 | AD18: 1.128130483 | AE18: 0.9761552298 | AF18: 50 | AG18: 0.116116719 | AH18: 2.85230121 | AI18: 1.071899245 | AJ18: 0.939227677 | AK18: 0.05487892563 | AL18: 2.747111105 | AM18: 1.064642492 | AN18: 0.9476890908 | AO18: 60 | AP18: 0.1158775054 | AQ18: 2.979337274 | AR18: 1.053992853 | AS18: 0.9096708632 | AT18: 0.05867592084 | AU18: 0.7300456724 | AV18: 1.388593319 | AW18: 1.025862786 | AY18: =I18&N18 -> DSN | AZ18: =V18 -> 1.05 | BA18: 40 | BB18: 0.05340366264 | BC18: 3.853556321 | BD18: 0.8064242197 | BE18: 1.007222748 | BF18: 50 | BG18: 0.05107293458 | BH18: 4.969294198 | BI18: 0.7152287856 | BJ18: 0.9906537465 | BK18: 60 | BL18: 0.05246105302 | BM18: 4.07658143 | BN18: 0.6642226522 | BO18: 1.093362814
H19: ACB461.52 | I19: D | J19: ACB46 | K19: 1.5 | L19: 1350 / 482 | M19: 60 68 | N19: SN | O19: 1126.7 | P19: 1.82 | Q19: 419.3 | R19: 1.84 | S19: 1495x593x282
H20: ACB461.82 | I20: D | J20: ACB46 | K20: 1.8 | L20: 1650 / 482 | M20: 72 80 | N20: SN | O20: 1442.6 | P20: 1.88 | Q20: 505.5 | R20: 1.88 | S20: 1795x593x282
H21: ACB462.42 | I21: D | J21: ACB46 | K21: 2.4 | L21: 2250 / 482 | M21: 92 108 | N21: SN | O21: 1737.2 | P21: 1.79 | Q21: 600 | R21: 1.78 | S21: 2395x593x282
H22: ACB46H0.61 | I22: C | J22: ACB46H | K22: 0.6 | L22: 450 / 282 | M22: 32 | N22: SN | O22: 980.11 | P22: 1.97 | S22: 595x593x282
H23: ACB46H0.91 | I23: C | J23: ACB46H | K23: 0.9 | L23: 750 / 282 | M23: 36 40 | N23: SN | O23: 1138.5 | P23: 1.86 | S23: 895x593x282
H24: ACB46H1.21 | I24: C | J24: ACB46H | K24: 1.2 | L24: 1050 / 282 | M24: 48 56 | N24: SN | O24: 1215.65 | P24: 1.79 | S24: 1195x593x282
H25: ACB46H1.51 | I25: C | J25: ACB46H | K25: 1.5 | L25: 1350 / 282 | M25: 60 68 | N25: SN | O25: 1317.3 | P25: 1.75 | S25: 1495x593x282
H26: ACB46H1.81 | I26: C | J26: ACB46H | K26: 1.8 | L26: 1650 / 282 | M26: 72 80 | N26: SN | O26: 1454.3 | P26: 1.76 | S26: 1795x593x282
H27: ACB46H2.41 | I27: C | J27: ACB46H | K27: 2.4 | L27: 2250 / 282 | M27: 92 108 | N27: SN | O27: 273.1 | P27: 1.79 | S27: 2395x593x282
H28: ACB46H0.62 | I28: D | J28: ACB46H | K28: 0.6 | L28: 450 / 482 | M28: 32 | N28: SN | O28: 393.6 | P28: 1.57 | Q28: 208.6 | R28: 1.66 | S28: 595x593x282
H29: ACB46H0.92 | I29: D | J29: ACB46H | K29: 0.9 | L29: 750 / 482 | M29: 36 40 | N29: SN | O29: 599.2 | P29: 1.67 | Q29: 270.7 | R29: 1.73 | S29: 895x593x282
H30: ACB46H1.22 | I30: D | J30: ACB46H | K30: 1.2 | L30: 1050 / 482 | M30: 48 56 | N30: SN | O30: 844.5 | P30: 1.75 | Q30: 341 | R30: 1.79 | S30: 1195x593x282
H31: ACB46H1.52 | I31: D | J31: ACB46H | K31: 1.5 | L31: 1350 / 482 | M31: 60 68 | N31: SN | O31: 1126.7 | P31: 1.82 | Q31: 419.3 | R31: 1.84 | S31: 1495x593x282
H32: ACB46H1.82 | I32: D | J32: ACB46H | K32: 1.8 | L32: 1650 / 482 | M32: 72 80 | N32: SN | O32: 1442.6 | P32: 1.88 | Q32: 505.5 | R32: 1.88 | S32: 1795x593x282
H33: ACB46H2.42 | I33: D | J33: ACB46H | K33: 2.4 | L33: 2250 / 482 | M33: 92 108 | N33: SN | O33: 1737.2 | P33: 1.79 | Q33: 600 | R33: 1.78 | S33: 2395x593x282
H34: CM10 6TH0.81 | I34: E | J34: CM10 6TH | K34: 0.8 | L34: 700 / 262 | M34: 14 26 | N34: SN MN | O34: 557.2 | P34: 1.68 | S34: 800x100x409SE(363EE)
H35: CM10 6TH0.91 | I35: E | J35: CM10 6TH | K35: 0.9 | L35: 800 / 262 | M35: 16 30 | N35: SN MN | O35: 613.3 | P35: 1.7 | S35: 900x100x409SE(363EE)
H36: CM10 6TH11 | I36: E | J36: CM10 6TH | K36: 1 | L36: 900 / 262 | M36: 18 35 | N36: SN MN | O36: 670.1 | P36: 1.71 | S36: 1000x100x409SE(363EE)
H37: CM10 6TH1.11 | I37: E | J37: CM10 6TH | K37: 1.1 | L37: 1000 / 262 | M37: 20 37 | N37: SN MN | O37: 727.7 | P37: 1.72 | S37: 1100x100x409SE(363EE)
H38: CM10 6TH1.21 | I38: E | J38: CM10 6TH | K38: 1.2 | L38: 1100 / 262 | M38: 22 41 | N38: SN MN | O38: 785.9 | P38: 1.73 | S38: 1200x100x409SE(363EE) | U38: =I38&LEFT(N38,2) -> ESN | V38: =LEFT(L38,4)/1000 -> 1.1 | W38: 20 | X38: 0.1183911281 | Y38: 2.517178503 | Z38: 1.332105831 | AA38: 0.9066890729 | AB38: 0.05547832634 | AC38: 2.894886433 | AD38: 1.270979346 | AE38: 0.9012723764 | AF38: 26 | AG38: 0.1182351026 | AH38: 3.120392253 | AI38: 1.249112089 | AJ38: 0.8485287885 | AK38: 0.05637438331 | AL38: 2.771433162 | AM38: 1.220381386 | AN38: 0.9435655933 | AO38: 33 | AP38: 0.1179697407 | AQ38: 3.967248102 | AR38: 1.12900347 | AS38: 0.8342784279 | AT38: 0.04559199447 | AU38: 4.571006518 | AV38: 0.9352927039 | AW38: 1.014655066
H39: 1 | U39: =I38&RIGHT(N38,2) -> EMN | V39: =LEFT(L38,4)/1000 -> 1.1 | W39: 20 | X39: 0.1193275156 | Y39: 2.348947083 | Z39: 1.198463212 | AA39: 0.8737676049 | AB39: 0.05264274968 | AC39: 1.9582049 | AD39: 1.201225838 | AE39: 0.9457552301 | AF39: 30 | AG39: 0.1198505985 | AH39: 2.550723788 | AI39: 1.106491382 | AJ39: 0.9475310941 | AK39: 0.05287003578 | AL39: 2.507116172 | AM39: 1.098603914 | AN39: 0.9678167443 | AO39: 40 | AP39: 0.1183384897 | AQ39: 2.381142384 | AR39: 1.052115735 | AS39: 0.9765108827 | AT39: 0.05321069948 | AU39: 2.881513511 | AV39: 0.9628923163 | AW39: 1.010830967
H40: CM10 6TH1.31 | I40: E | J40: CM10 6TH | K40: 1.3 | L40: 1200 / 262 | M40: 24 44 | N40: SN MN | O40: 844.6 | P40: 1.74 | S40: 1300x100x409SE(363EE)
H41: CM10 6TH1.41 | I41: E | J41: CM10 6TH | K41: 1.4 | L41: 1300 / 262 | M41: 26 50 | N41: SN MN | O41: 903.8 | P41: 1.74 | S41: 1400x100x409SE(363EE)
H42: CM10 6TH1.51 | I42: E | J42: CM10 6TH | K42: 1.5 | L42: 1400 / 262 | M42: 28 52 | N42: SN MN | O42: 963.4 | P42: 1.75 | S42: 1500x100x409SE(363EE)
H43: CM10 6TH1.61 | I43: E | J43: CM10 6TH | K43: 1.6 | L43: 1500 / 262 | M43: 30 54 | N43: SN MN | O43: 1023.4 | P43: 1.76 | S43: 1600x100x409SE(363EE)
H44: ACB501.21 | I44: F | J44: ACB50 | K44: 1.2 | L44: 1050 / 282 | M44: 30 38 | N44: SN | O44: 1215.65 | P44: 1.79 | S44: 1192x592x282
H45: ACB501.81 | I45: F | J45: ACB50 | K45: 1.8 | L45: 1650 / 282 | M45: 42 54 | N45: SN | O45: 1454.3 | P45: 1.76 | S45: 1792x592x282 | U45: No data
H46: HM300.752 | I46: G | J46: HM30 | K46: 0.75 | L46: 700 / 482 | M46: 14 26 | N46: MN | O46: 587 | P46: 1.63 | Q46: 271 | R46: 1.72 | S46: 750x443x224
H47: HM300.852 | I47: G | J47: HM30 | K47: 0.85 | L47: 800 / 482 | M47: 16 30 | N47: MN | O47: 668 | P47: 1.68 | Q47: 297 | R47: 1.74 | S47: 850x443x224
H48: HM300.952 | I48: G | J48: HM30 | K48: 0.95 | L48: 900 / 482 | M48: 18 35 | N48: MN | O48: 748 | P48: 1.7 | Q48: 322 | R48: 1.75 | S48: 950x443x224
H49: HM301.052 | I49: G | J49: HM30 | K49: 1.05 | L49: 1000 / 482 | M49: 20 37 | N49: MN | O49: 828 | P49: 1.73 | Q49: 346 | R49: 1.78 | S49: 1050x443x224
H50: HM301.152 | I50: G | J50: HM30 | K50: 1.15 | L50: 1100 / 482 | M50: 22 41 | N50: MN | O50: 908 | P50: 1.77 | Q50: 370 | R50: 1.8 | S50: 1150x443x224
H51: HM301.252 | I51: G | J51: HM30 | K51: 1.25 | L51: 1200 / 482 | M51: 24 44 | N51: MN | O51: 988 | P51: 1.79 | Q51: 393 | R51: 1.82 | S51: 1250x443x224
H52: HM301.352 | I52: G | J52: HM30 | K52: 1.35 | L52: 1300 / 482 | M52: 26 50 | N52: MN | O52: 1067 | P52: 1.81 | Q52: 415 | R52: 1.84 | S52: 1350x443x224
H53: HM301.452 | I53: G | J53: HM30 | K53: 1.45 | L53: 1400 / 482 | M53: 28 52 | N53: MN | O53: 1146 | P53: 1.81 | Q53: 437 | R53: 1.85 | S53: 1450x443x224
H54: HM301.552 | I54: G | J54: HM30 | K54: 1.55 | L54: 1500 / 482 | M54: 30 54 | N54: MN | O54: 1235 | P54: 1.81 | Q54: 484.1 | R54: 1.85 | S54: 1550x443x224 | U54: =I54&LEFT(N54,2) -> GMN | V54: =LEFT(L54,4)/1000 -> 1.5 | W54: 20 | X54: 0.1 | Y54: 0.8870816952 | Z54: 1.620436541 | AA54: 0.8937020503 | AB54: 0.047999 | AC54: 1.286833213 | AD54: 1.440825439 | AE54: 0.9139033118 | AF54: 33 | AG54: 0.1006556 | AH54: 1.790076291 | AI54: 1.311986849 | AJ54: 0.9038486592 | AK54: 0.048239 | AL54: 2.517894641 | AM54: 1.166969523 | AN54: 0.964486736 | AO54: 46 | AP54: 0.1013542116 | AQ54: 2.658516044 | AR54: 1.132779149 | AS54: 0.9351774948 | AT54: 0.0551154 | AU54: 3.213361223 | AV54: 1.040750911 | AW54: 0.9895878331 | AY54: =I54&N54 -> GMN | AZ54: =V54 -> 1.5 | BA54: 20 | BB54: 0.0510956 | BC54: 1.096528408 | BD54: 1.222570427 | BE54: 1.080218311 | BF54: 33 | BG54: 0.0522 | BH54: 2.245968891 | BI54: 1.011716293 | BJ54: 1.027019576 | BK54: 46 | BL54: 0.0522 | BM54: 5.056854851 | BN54: 0.7906182706 | BO54: 0.969794843
H55: CM10 4TH0.81 | I55: H | J55: CM10 4TH | K55: 0.8
H56: CM10 4TH0.91 | I56: H | J56: CM10 4TH | K56: 0.9
H57: CM10 4TH11 | I57: H | J57: CM10 4TH | K57: 1
H58: CM10 4TH1.11 | I58: H | J58: CM10 4TH | K58: 1.1
H59: CM10 4TH1.21 | I59: H | J59: CM10 4TH | K59: 1.2 | L59: 1100 / 242 | M59: 18 38 | N59: SN | O59: 1495 | P59: 2.11 | U59: =I59&LEFT(N59,2) -> HSN | V59: =LEFT(L59,4)/1000 -> 1.1 | W59: 20 | X59: 0.09887 | Y59: 2.897686857 | Z59: 1.154433653 | AA59: 0.8777467194 | AB59: 0.0500798 | AC59: 3.92597774 | AD59: 1.052884998 | AE59: 0.8670998342 | AF59: 30 | AG59: 0.0982858 | AH59: 2.66662136 | AI59: 1.120364172 | AJ59: 0.9139863542 | AK59: 0.0520658 | AL59: 3.376195478 | AM59: 1.049516301 | AN59: 0.9038063046 | AO59: 40 | AP59: 0.0998372 | AQ59: 2.745328112 | AR59: 1.056273965 | AS59: 0.9138190638 | AT59: 0.0508678 | AU59: 3.189051831 | AV59: 0.9951656115 | AW59: 0.9281020087
H60: CM10 4TH1.31 | I60: H | J60: CM10 4TH | K60: 1.3
A61: Primary Air Flow | H61: CM10 4TH1.41 | I61: H | J61: CM10 4TH | K61: 1.4
A62: MN | B62: 191 | H62: CM10 4TH1.51 | I62: H | J62: CM10 4TH | K62: 1.5
A63: PN | B63: 98 | C63: =IF(ISNUMBER(VALUE(LEFT(SelecTool!F14,3)))=TRUE,LEFT(SelecTool!F14,3),LEFT(SelecTool!F14,2)) -> Se | D63: Number of nozzle specified | H63: CM10 4TH1.61 | I63: H | J63: CM10 4TH | K63: 1.6
A64: SN | B64: 375 | C64: =VLOOKUP(RIGHT(N98,2),A62:B64,2,TRUE) ->  | D64: Coefficient of selected nozzle | H64: =J64&K64 -> 
A67: Secondary Air Flow
A68: Under isothermal conditions Secondary Air Flow (L/s per nozzle) = a.Pb
A69: Where: | C69: P = Plenum pressure (Pa)
A71: IR REF. | B71: Model | C71: Component | D71: Component | E71: Induction Per Nozzle (L/s) | F71: Induction Ratio
C72: ‘a’ | D72: ‘b’ | E72: ="at "&LEFT($C$94,3)&"Pa" ->  | F72: ="at "&LEFT($C$94,3)&"Pa" ->  | H72: =J72&K72 -> 
A73: ASN | B73: ACB45 / 282 SN | C73: 0.0652 | D73: 0.6677 | E73: =C73*$C$94^D73 ->  | F73: =E73/($C$94/375)^0.5 -> 
A74: BSN | B74: =B73 -> ACB45 / 282 SN | C74: =C73 -> 0.0652 | D74: =D73 -> 0.6677 | E74: =E73 ->  | F74: =F73 -> 
A75: CSN | B75: ACB46 / 282 SN | C75: 0.0621 | D75: 0.6885 | E75: =C75*$C$94^D75 ->  | F75: =E75/($C$94/375)^0.5 -> 
A76: DSN | B76: =B75 -> ACB46 / 282 SN | E76: =E75 ->  | F76: =F75 -> 
A77: ESN | B77: CM10 / 262 SN | C77: 0.0704 | D77: 0.722 | E77: =C77*$C$94^D77 ->  | F77: =E77/($C$94/375)^0.5 -> 
A78: EMN | B78: CM10 / 262 MN | C78: 0.0816 | D78: 0.6365 | E78: =C78*$C$94^D78 ->  | F78: =E78/($C$94/191)^0.5 -> 
A79: FSN | B79: ACB50 / 282 SN
A80: GMN | B80: HM30 / 282 MN | C80: 0.1392 | D80: 0.6119 | E80: =C80*$C$94^D80 ->  | F80: =E80/($C$94/191)^0.5 -> 
A81: HSN | B81: CM10 / 242 SN | C81: 0.0639 | D81: 0.6452 | E81: =C81*$C$94^D81 ->  | F81: =E81/($C$94/375)^0.5 -> 
A87: =VLOOKUP(N98,$A$73:$F$86,1,FALSE) ->  | B87: Air induction for selected unit. | E87: =VLOOKUP(N98,$A$73:$F$86,5,FALSE) ->  | F87: =VLOOKUP(N98,$A$73:$F$86,6,FALSE) ->  | I87: =VLOOKUP(SelecTool!$D$14&SelecTool!$E$14&SelecTool!$R$2,$H$6:$S$86,I$3,FALSE) ->  | J87: =VLOOKUP(SelecTool!$D$14&SelecTool!$E$14&SelecTool!$R$2,$H$6:$S$86,J$3,FALSE) ->  | K87: =VLOOKUP(SelecTool!$D$14&SelecTool!$E$14&SelecTool!$R$2,$H$6:$S$86,K$3,FALSE) ->  | L87: =VLOOKUP(SelecTool!$D$14&SelecTool!$E$14&SelecTool!$R$2,$H$6:$S$86,L$3,FALSE) ->  | M87: =VLOOKUP(SelecTool!$D$14&SelecTool!$E$14&SelecTool!$R$2,$H$6:$S$86,M$3,FALSE) ->  | N87: =VLOOKUP(SelecTool!$D$14&SelecTool!$E$14&SelecTool!$R$2,$H$6:$S$86,N$3,FALSE) ->  | O87: =VLOOKUP(SelecTool!$D$14&SelecTool!$E$14&SelecTool!$R$2,$H$6:$S$86,O$3,FALSE) ->  | P87: =VLOOKUP(SelecTool!$D$14&SelecTool!$E$14&SelecTool!$R$2,$H$6:$S$86,P$3,FALSE) ->  | Q87: =VLOOKUP(SelecTool!$D$14&SelecTool!$E$14&SelecTool!$R$2,$H$6:$S$86,Q$3,FALSE) ->  | R87: =VLOOKUP(SelecTool!$D$14&SelecTool!$E$14&SelecTool!$R$2,$H$6:$S$86,R$3,FALSE) ->  | S87: =VLOOKUP(SelecTool!$D$14&SelecTool!$E$14&SelecTool!$R$2,$H$6:$S$86,S$3,FALSE) ->  | U87: =VLOOKUP($N$98,$U$6:$AW$86,U$3,FALSE) ->  | V87: =VLOOKUP($N$98,$U$6:$AW$86,V$3,FALSE) ->  | AY87: =VLOOKUP($N$98,$AY$6:$BO$86,AY$3,FALSE) -> 
M88: Nozzle Range | N88: Nozzle Options | X88: kg/s | Y88: A | Z88: n | AA88: m | AB88: kg/s | AC88: A | AD88: n | AE88: m | AG88: kg/s | AH88: A | AI88: n | AJ88: m | AK88: kg/s | AL88: A | AM88: n | AN88: m | AP88: kg/s | AQ88: A | AR88: n | AS88: m | AT88: kg/s | AU88: A | AV88: n | AW88: m | BB88: kg/s | BC88: A | BD88: n | BE88: m | BG88: kg/s | BH88: A | BI88: n | BJ88: m | BL88: kg/s | BM88: A | BN88: n | BO88: m
M89: =TRIM(LEFT(M87,3)) ->  | N89: =M89&LEFT(N87,2) -> 
M90: =EVEN(M89+(M91-M89)/2) ->  | N90: =M90&LEFT(N87,2) -> 
M91: =TRIM(RIGHT(M87,3)) ->  | N91: =M91&LEFT(N87,2) -> 
N92: =IF(M89&RIGHT(N87,2)=N89,"",M89&RIGHT(N87,2)) -> 
B93: Primary Flow @ 21C | C93: =SelecTool!D27*airdensity(SelecTool!D20)/1.2 -> 16.31112008 | D93: L/s | N93: =IF(N92="","",M90&RIGHT(N87,2)) -> 
B94: Plenum Pressure | C94: =C64*(C93/C63)^2 ->  | D94: Pa | N94: =IF(N92="","",M91&RIGHT(N87,2)) ->  | V94: Cooling Calculations | AZ94: Heating Calculations
B96: Primary Flow per mtr coil (@21C) | C96: =C93*1000/N97 ->  | D96: L/s | M96: SELECTION REFERENCE | V96: Selected nozzle pitch set in reference unit | W96: Primary Flow through selected nozzle pitch at selection plenum pressure. | Z96: Ref. Nozzle Numbers | AM96: Water Flow For actual ΔTw (interpolated) | AN96: Cooling in test unit | AZ96: Selected nozzle pitch set in reference unit | BA96: Primary Flow through selected nozzle pitch at selection plenum pressure. | BD96: Ref. Nozzle Numbers
B97: Nozzles per m | C97: =C63/N97*1000 ->  | M97: Coil length | N97: =LEFT(L87,4) ->  | W97: qp | X97: Өw1 | Y97: Ps | Z97: SN or MN | AA97: Pk | AB97: Өw2 | AC97: Iterated High Flow Reference Pw | AG97: Pk | AH97: Өw2 | AI97: Iterated Low Flow Reference Pw | AM97: kg/s | AN97: W | BA97: qp | BB97: Өw1 (calculated as if cooling) | BD97: SN or MN | BE97: Pk | BF97: Өw2 | BG97: Water Flow Reference Pw
M98: Duty Calc. Ref: | N98: =I87&RIGHT(SelecTool!F14,2) ->  | V98: =C97*V87 ->  | W98: =C96*V87 ->  | X98: =SelecTool!D31 -> 15.7 | Y98: N/A | Z98: ='Selection Data'!W87 ->  | AA98: =waterPk('Selection Data'!Y87,'Selection Data'!Z87,W98) ->  | AB98: =waterTempW2(AA98,'Selection Data'!AA87,X98,'Selection Data'!X87,X100) ->  | AC98: =(AB98-X98)*'Selection Data'!X87*4187 ->  | AG98: =waterPk('Selection Data'!AC87,'Selection Data'!AD87,W98) ->  | AH98: =waterTempW2(AG98,'Selection Data'!AE87,X98,'Selection Data'!AB87,X100) ->  | AI98: =(AH98-X98)*'Selection Data'!AB87*4187 ->  | AQ98: =X87 ->  | AR98: =AB87 ->  | AS98: water flow gradient 'm' | AT98: water flow intercept 'C' | AZ98: ='Selection Data'!C97*'Selection Data'!AZ87 ->  | BA98: ='Selection Data'!C96*'Selection Data'!AZ87 ->  | BB98: =BB100-(SelecTool!F31-BB100) -> 7 | BD98: ='Selection Data'!BA87 ->  | BE98: =waterPk('Selection Data'!BC87,'Selection Data'!BD87,BA98) ->  | BF98: =waterTempW2(BE98,'Selection Data'!BE87,BB98,'Selection Data'!BB87,BB100) ->  | BG98: =(BF98-BB98)*'Selection Data'!BB87*4187 -> 
B99: Water In | C99: =SelecTool!D31 -> 15.7 | D99: °C | Z99: ='Selection Data'!AF87 ->  | AA99: =waterPk('Selection Data'!AH87,'Selection Data'!AI87,W98) ->  | AB99: =waterTempW2(AA99,'Selection Data'!AJ87,X98,'Selection Data'!AG87,X100) ->  | AC99: =(AB99-X98)*'Selection Data'!AG87*4187 ->  | AD99: c.base (m) | AE99: constant(b) | AF99: Nozzle specific Pw | AG99: =waterPk('Selection Data'!AL87,'Selection Data'!AM87,W98) ->  | AH99: =waterTempW2(AG99,'Selection Data'!AN87,X98,'Selection Data'!AK87,X100) ->  | AI99: =(AH99-X98)*'Selection Data'!AK87*4187 ->  | AJ99: c.base (m) | AK99: constant(b) | AL99: Nozzle SpecificPw | AQ99: =AF101 ->  | AR99: =AL101 ->  | AS99: =LINEST(AQ98:AR98,AQ99:AR99,TRUE,TRUE) ->  | BD99: ='Selection Data'!BF87 ->  | BE99: =waterPk('Selection Data'!BH87,'Selection Data'!BI87,BA98) ->  | BF99: =waterTempW2(BE99,'Selection Data'!BJ87,BB98,'Selection Data'!BG87,BB100) ->  | BG99: =(BF99-BB98)*'Selection Data'!BG87*4187 ->  | BH99: c.base (m) | BI99: constant(b) | BJ99: Nozzle specific Pw
B100: Water Out | C100: =SelecTool!D32 -> 17.63 | D100: °C | V100: Room Temp | X100: =SelecTool!D20 -> 25 | Z100: ='Selection Data'!AO87 ->  | AA100: =waterPk('Selection Data'!AQ87,'Selection Data'!AR87,W98) ->  | AB100: =waterTempW2(AA100,'Selection Data'!AS87,X98,'Selection Data'!AP87,X100) ->  | AC100: =(AB100-X98)*'Selection Data'!AP87*4187 ->  | AD100: =LINEST(AC98:AC100,LN(Z98:Z100),TRUE,FALSE) ->  | AF100: =AD100*LN($V$98)+AE100 ->  | AG100: =waterPk('Selection Data'!AU87,'Selection Data'!AV87,W98) ->  | AH100: =waterTempW2(AG100,'Selection Data'!AW87,X98,'Selection Data'!AT87,X100) ->  | AI100: =(AH100-X98)*'Selection Data'!AT87*4187 ->  | AJ100: =LINEST(AI98:AI100,LN(Z98:Z100),TRUE,FALSE) ->  | AL100: =AJ100*LN($V$98)+AK100 ->  | AZ100: Room Temp | BB100: =SelecTool!F20 -> 21 | BD100: ='Selection Data'!BK87 ->  | BE100: =waterPk('Selection Data'!BM87,'Selection Data'!BN87,BA98) ->  | BF100: =waterTempW2(BE100,'Selection Data'!BO87,BB98,'Selection Data'!BL87,BB100) ->  | BG100: =(BF100-BB98)*'Selection Data'!BL87*4187 ->  | BH100: =LINEST(BG98:BG100,LN(BD98:BD100),TRUE,FALSE) ->  | BJ100: =BH100*LN($AZ$98)+BI100 -> 
AE101: ΔTw = | AF101: =AF100/(4187*X87) ->  | AK101: ΔTw = | AL101: =AL100/(4187*AB87) ->  | AM101: =IF((AT99+(AS99*(C100-C99)))<0.02,0.02,IF((AT99+(AS99*(C100-C99)))>0.15,0.15,(AT99+(AS99*(C100-C99))))) ->  | AN101: =-1*(AT102+(AS102*AM101)) ->  | AQ101: =AF100 ->  | AR101: =AL100 ->  | AS101: duty gradient | AT101: duty intercept | BI101: ΔTw = | BJ101: =BJ100/(4187*'Selection Data'!BB87) -> 
B102: Actual coil water flow | C102: =-1*(F110/(4187*(C100-C99))) ->  | D102: L/s | AQ102: =AQ98 ->  | AR102: =AR98 ->  | AS102: =LINEST(AQ101:AR101,AQ102:AR102,TRUE,TRUE) -> 
B104: Actual coil ΔP | C104: =O87*C102^P87 ->  | D104: kPa
B106: Air off coil temp. | C106: =SelecTool!D20-(-SelecTool!D37/(1018*'Selection Data'!E87*'Selection Data'!C63*(1.2/1000))) ->  | D106: °C
E108: Eurovent safety factor (1=no factor) | F108: 0.98
E109: Specific Cooling Rate | F109: =F108*AN101/V87 ->  | G109: W/m coil per kg water flow.
E110: Actual Cooling | F110: ='Selection Data'!F109*'Selection Data'!N97/1000 ->  | G110: W
E113: Offset factor for air density in test | F113: 0
E114: Actual Heating | F114: =F113*BJ100/AZ87*(N97/1000) ->  | G114: W
E115: Өw1 | F115: =SelecTool!F31 -> 35 | G115: °C
E116: Өw2 | F116: =F115-(F114/(4187*0.05)) ->  | G116: °C
E117: Coil ΔP | F117: =Q87*0.05^R87 ->  | G117: kPa
BU128: =#REF! ->  | BV128: =#REF! ->  | BW128: water flow gradient 'm' | BX128: water flow intercept 'C'
BU129: =BJ101 ->  | BV129: =BP101 -> 0 | BW129: =LINEST(BU128:BV128,BU129:BV129,TRUE,TRUE) -> 
BU131: =BJ100 ->  | BV131: =BP100 -> 0 | BW131: duty gradient | BX131: duty intercept
BU132: =BU128 ->  | BV132: =BV128 ->  | BW132: =LINEST(BU131:BV131,BU132:BV132,TRUE,TRUE) -> 

Sheet ValData_Model (hidden)
A1: Model-Coil config-circuit id-nozzle type
C2: Name Manager functions to drive dynamic data validations.
D3: P2valdata | E3: =ValData_Model!$A$11:INDEX(ValData_Model!$10:$40,31,COUNTA(ValData_Model!$10:$10)) -> 
D4: P2master | E4: =ValData_Model!$A$11:INDEX(ValData_Model!$A$10:$A$40,COUNTA(ValData_Model!$A$10:$A$40)) -> 
D5: P2counter | E5: =COUNTA(INDEX(P2valdata,,MATCH(SelecTool!D13,ValData_Model!$10:$10,0))) -> 5
D6: P2uselist | E6: =INDEX(P2valdata,1,MATCH(SelecTool!D13,ValData_Model!$10:$10,0)):INDEX(P2valdata,P2counter,MATCH(SelecTool!D13,ValData_Model!$10:$10,0)) -> 
A8: 2-Pipe
A10: Model | B10: =A11 -> ACB45 | C10: =A12 -> ACB46 | D10: =A13 -> ACB50 | E10: =A14 -> CM10 4TH | F10: =A15 -> CM10 6TH | G10: =A16 -> 0
A11: ACB45 | B11: 0.9 | C11: 2.4 | D11: 1.2 | E11: 1.2 | F11: 0.8
A12: ACB46 | B12: 1.5 | D12: 1.8 | F12: 0.9
A13: ACB50 | F13: 1
A14: CM10 4TH | F14: 1.1
A15: CM10 6TH | F15: 1.2
F16: 1.3
F17: 1.4
F18: 1.5
F19: 1.6
D43: P4valdata | E43: =ValData_Model!$A$51:INDEX(ValData_Model!$50:$80,31,COUNTA(ValData_Model!$50:$50)) -> 
D44: P4master | E44: =ValData_Model!$A$51:INDEX(ValData_Model!$A$50:$A$80,COUNTA(ValData_Model!$A$50:$A$80)) -> 
D45: P4counter | E45: =COUNTA(INDEX(P4valdata,,MATCH(SelecTool!D13,ValData_Model!$50:$50,0))) -> 3
D46: P4uselist | E46: =INDEX(P4valdata,1,MATCH(SelecTool!D13,ValData_Model!$50:$50,0)):INDEX(P4valdata,P4counter,MATCH(SelecTool!D13,ValData_Model!$50:$50,0)) -> 
A48: 4-Pipe
A50: Model | B50: =A51 -> ACB46 | C50: =A52 -> ACB46H | D50: =A53 -> HM30 | E50: =A54 -> 0
A51: ACB46 | B51: 0.9 | C51: 0.9 | D51: 0.75
A52: ACB46H | B52: 1.2 | C52: 1.2 | D52: 0.85
A53: HM30 | B53: 1.8 | C53: 1.8 | D53: 0.95
B54: 2.4 | D54: 1.05
D55: 1.15
D56: 1.25
D57: 1.35
D58: 1.45
D59: 1.55

Sheet Enable Macros
D10: You must enable macros before using this workbook.
... 1 more rows

Sheet Sheet1 (hidden)
